Workbook

Sheet G1
B1: G1 - GROUT HOLE
B3: REPORT FORM & CALCULATIONS | N3: GROUP
B4: HOLE DEPTH : 24.1 m
A5: GROUT STAGE NU AND INFO | B5: DATE | C5: WATER TEST STAGE | D5: TESTING TIMES | H5: GAUGE PRESSURE Kpa | J5: Liter per Hr | K5: WATER INJECTED INTO HOLE IN TESTING PERIOD TOTAL QUANTITY READ FROM WATER METER)
B6: 2024-10-16 | D6: REQUIRED MINS. | E6: ACTUAL MINS. | F6: CLOCK TIMES | H6: REQUIRED | I6: ACTUAL | J6: 300 | L6: LUGEON VALUE | P6: 300
F7: FROM | G7: TO | J7: 60 | K7: LITRES | L7: FOR EACH TEST | M7: REPRESTNTA-TIVE FOR TESTED STAGE | P7: 60
A8: Stage1 Packer plased on 15m IH Camera 20.1 meter 275 Kg dry mix, Cup Wate = 985g = 1.79q Wet. | B8: 2024-10-16 | C8: FROM | D8: 10 | E8: 15 | F8: 09H00 | G8: 09H15 | H8: 100 | I8: 0.1 | J8: 650 | K8: =SUM((J8/$J$7)*E8) -> 162.5 | L8: =SUM(K8*(H8/I8)) -> 162500 | N8: A LAMINAR | P8: =P6/P7 -> 5
B9: 2024-10-16 | C9: 16 | D9: 10 | H9: 250 | K9: =SUM((J9/$J$7)*E9) -> 0 | L9: =SUM(K9*(H9/I9)) -> 
B10: 2024-10-16 | C10: TO | D10: 10 | H10: 410 | K10: 0
B11: 2024-10-16 | C11: 24.1 | D11: 10 | H11: 250 | K11: 0
B12: 2024-10-16 | D12: 10 | H12: 100 | K12: 0
B13: =B8 -> 2024-10-16 | C13: FROM | D13: 10 | E13: 10 | F13: 09H25 | G13: 09H35 | H13: 100 | I13: 1 | J13: 700 | K13: =SUM((J13/$J$7)*E13) -> 116.6666667 | L13: 11667 | N13: B TURBULENT
C14: 12 | D14: 10 | H14: 250 | K14: 0
C15: TO | D15: 10 | H15: 410 | K15: 0
C16: 24.1 | D16: 10 | H16: 250 | K16: 0
D17: 10 | H17: 100 | K17: 0
C18: FROM | D18: 10 | H18: 100 | K18: 0 | N18: C DILATION
D19: 10 | H19: 250 | K19: 0
C20: TO | D20: 10 | H20: 410 | K20: 0
D21: 10 | H21: 250 | K21: 0
D22: 10 | H22: 100 | K22: 0
B23: 2024-11-05 | C23: FROM | D23: 10 | H23: 100 | K23: 0 | N23: D WASH-OUT
C24: 0 | D24: 10 | H24: 250 | K24: 0
C25: TO | D25: 10 | H25: 410 | K25: 0
C26: 15.5 | D26: 10 | H26: 250 | K26: 0
D27: 10 | H27: 100 | K27: 0
C28: FROM | D28: 10 | H28: 100 | K28: 0 | N28: E VOID FILLING
D29: 10 | H29: 250 | K29: 0
C30: TO | D30: 10 | H30: 410 | K30: 0
D31: 10 | H31: 250 | K31: 0
D32: 10 | H32: 100 | K32: 0
C33: FROM | D33: 10 | H33: 100 | K33: 0 | N33: *
D34: 10 | H34: 250 | K34: 0
C35: TO | D35: 10 | H35: 410 | K35: 0
D36: 10 | H36: 250 | K36: 0
D37: 10 | H37: 100 | K37: =SUM((J37/$J$7)*E38) -> 0
E38: =SUM(E8:E36) -> 25
K39: * PARTING BEYOND PUMP CAPACITY
C40: REMARKS : CRACKS = 15.2m
C41: SEVERE CAVITY AT 20.1m
D43: REMARKS
C44: P/B | D44: W/S = 0.5
D45: GROUT MIX : CEMENT 50kg
D46: UCS - 0124 = 250g
D47: WATER = 25l

Sheet G2
A1: G2 - GROUT HOLE
A3: REPORT FORM & CALCULATIONS | M3: GROUP
A4: HOLE DEPTH : 22.7m
A5: DATE | B5: STAGE | C5: TESTING TIMES | G5: GAUGE PRESSURE Kpa | I5: Liter per Hr | J5: WATER INJECTED INTO HOLE IN TESTING PERIOD TOTAL QUANTITY READ FROM WATER METER)
A6: 2024-10-16 | C6: REQUIRED MINS. | D6: ACTUAL MINS. | E6: CLOCK TIMES | G6: REQUIRED | H6: ACTUAL | I6: 300 | K6: LUGEON VALUE
E7: FROM | F7: TO | I7: 60 | J7: LITRES | K7: FOR EACH TEST | L7: REPRESTNTA-TIVE FOR TESTED STAGE
B8: FROM | C8: 10 | D8: 10 | E8: 12H03 | F8: 12H13 | G8: 100 | H8: 1 | I8: 800 | J8: =SUM((I8/$I$7)*D8) -> 133.3333333 | K8: =SUM(J8*(G8/H8)) -> 13333 | M8: A LAMINAR
B9: 14 | C9: 10 | G9: 250 | J9: =SUM((I9/$I$7)*D9) -> 0 | K9: =SUM(J9*(G9/H9)) -> 
B10: TO | C10: 10 | G10: 410 | J10: 0
B11: 22.7 | C11: 10 | G11: 250 | J11: 0
C12: 10 | G12: 100 | J12: 0
B13: FROM | C13: 10 | D13: 10 | E13: 12H20 | F13: 12H30 | G13: 100 | H13: 1 | I13: 980 | J13: 163.3333333 | K13: 16333 | M13: B TURBULENT
B14: 10 | C14: 10 | G14: 250 | J14: 0
B15: TO | C15: 10 | G15: 410 | J15: 0
B16: 22.7 | C16: 10 | G16: 250 | J16: 0
C17: 10 | G17: 100 | J17: 0
B18: FROM | C18: 10 | G18: 100 | J18: 0 | M18: C DILATION
C19: 10 | G19: 250 | J19: 0
B20: TO | C20: 10 | G20: 410 | J20: 0
C21: 10 | G21: 250 | J21: 0
C22: 10 | G22: 100 | J22: 0
B23: FROM | C23: 10 | G23: 100 | J23: 0 | M23: D WASH-OUT
C24: 10 | G24: 250 | J24: 0
B25: TO | C25: 10 | G25: 410 | J25: 0
C26: 10 | G26: 250 | J26: 0
C27: 10 | G27: 100 | J27: 0
B28: FROM | C28: 10 | G28: 100 | J28: 0 | M28: E VOID FILLING
C29: 10 | G29: 250 | J29: 0
B30: TO | C30: 10 | G30: 410 | J30: 0
C31: 10 | G31: 250 | J31: 0
C32: 10 | G32: 100 | J32: 0
B33: FROM | C33: 10 | G33: 100 | J33: 0 | M33: *
C34: 10 | G34: 250 | J34: 0
B35: TO | C35: 10 | G35: 410 | J35: 0
C36: 10 | G36: 250 | J36: 0
C37: 10 | G37: 100 | J37: 0
J39: * PARTING BEYOND PUMP CAPACITY
B40: REMARKS
B41: CAVITY : 12.2m
B42: CAVITY : 20.8m
C44: REMARKS
B45: P/B | C45: W/S = 0.5
C46: GROUT MIX : CEMENT 50kg
C47: UCS - 0124 = 250g
C48: WATER = 25l

Sheet G3
A1: G3 - GROUT HOLE
A3: REPORT FORM & CALCULATIONS | M3: GROUP
A4: HOLE DEPTH : 22.8m
A5: DATE | B5: STAGE | C5: TESTING TIMES | G5: GAUGE PRESSURE Kpa | I5: Liter per Hr | J5: WATER INJECTED INTO HOLE IN TESTING PERIOD TOTAL QUANTITY READ FROM WATER METER)
A6: 2024-10-16 | C6: REQUIRED MINS. | D6: ACTUAL MINS. | E6: CLOCK TIMES | G6: REQUIRED | H6: ACTUAL | I6: 300 | K6: LUGEON VALUE
E7: FROM | F7: TO | I7: 60 | J7: LITRES | K7: FOR EACH TEST | L7: REPRESTNTA-TIVE FOR TESTED STAGE
B8: FROM | C8: 10 | D8: 10 | E8: 13H50 | F8: 14H00 | G8: 100 | H8: 1 | I8: 650 | J8: =SUM((I8/$I$7)*D8) -> 108.3333333 | K8: =SUM(J8*(G8/H8)) -> 10833 | M8: A LAMINAR
B9: 14 | C9: 10 | G9: 250 | J9: =SUM((I9/$I$7)*D9) -> 0 | K9: =SUM(J9*(G9/H9)) -> 
B10: TO | C10: 10 | G10: 410 | J10: 0
C11: 10 | G11: 250 | J11: 0
C12: 10 | G12: 100 | J12: 0
B13: FROM | C13: 10 | D13: 10 | E13: 14H07 | F13: 14H17 | G13: 100 | H13: 1 | I13: 650 | J13: 108.3333333 | K13: 10833 | M13: B TURBULENT
B14: 10 | C14: 10 | G14: 250 | J14: 0
B15: TO | C15: 10 | G15: 410 | J15: 0
C16: 10 | G16: 250 | J16: 0
C17: 10 | G17: 100 | J17: 0
B18: FROM | C18: 10 | G18: 100 | J18: 0 | M18: C DILATION
C19: 10 | G19: 250 | J19: 0
B20: TO | C20: 10 | G20: 410 | J20: 0
C21: 10 | G21: 250 | J21: 0
C22: 10 | G22: 100 | J22: 0
B23: FROM | C23: 10 | G23: 100 | J23: 0 | M23: D WASH-OUT
C24: 10 | G24: 250 | J24: 0
B25: TO | C25: 10 | G25: 410 | J25: 0
C26: 10 | G26: 250 | J26: 0
C27: 10 | G27: 100 | J27: 0
B28: FROM | C28: 10 | G28: 100 | J28: 0 | M28: E VOID FILLING
C29: 10 | G29: 250 | J29: 0
B30: TO | C30: 10 | G30: 410 | J30: 0
C31: 10 | G31: 250 | J31: 0
C32: 10 | G32: 100 | J32: 0
B33: FROM | C33: 10 | G33: 100 | J33: 0 | M33: *
C34: 10 | G34: 250 | J34: 0
B35: TO | C35: 10 | G35: 410 | J35: 0
C36: 10 | G36: 250 | J36: 0
C37: 10 | G37: 100 | J37: 0
J39: * PARTING BEYOND PUMP CAPACITY
B40: REMARKS
B41: CAVITY : 13.1m
C43: REMARKS
B44: P/B | C44: W/S = 0.5
C45: GROUT MIX : CEMENT 50kg
C46: UCS - 0124 = 250g
C47: WATER = 25l

Sheet G4
A1: G4 - GROUT HOLE
A3: REPORT FORM & CALCULATIONS | M3: GROUP
A4: HOLE DEPTH : 23.5m
A5: DATE | B5: STAGE | C5: TESTING TIMES | G5: GAUGE PRESSURE BARS | I5: Liter per Hr | J5: WATER INJECTED INTO HOLE IN TESTING PERIOD TOTAL QUANTITY READ FROM WATER METER)
A6: 2024-10-16 | C6: REQUIRED MINS. | D6: ACTUAL MINS. | E6: CLOCK TIMES | G6: REQUIRED | H6: ACTUAL | I6: 300 | K6: LUGEON VALUE
E7: FROM | F7: TO | I7: 60 | J7: LITRES | K7: FOR EACH TEST | L7: REPRESTNTA-TIVE FOR TESTED STAGE
B8: FROM | C8: 10 | D8: 10 | E8: 14H35 | F8: 14H45 | G8: 100 | H8: 1 | I8: 650 | J8: =SUM((I8/$I$7)*D8) -> 108.3333333 | K8: =SUM(J8*(G8/H8)) -> 10833 | M8: A LAMINAR
B9: 14 | C9: 10 | G9: 250 | J9: =SUM((I9/$I$7)*D9) -> 0 | K9: =SUM(J9*(G9/H9)) -> 
B10: TO | C10: 10 | G10: 410 | J10: 0
B11: 23.5 | C11: 10 | G11: 250 | J11: 0
C12: 10 | G12: 100 | J12: 0
B13: FROM | C13: 10 | D13: 10 | E13: 14H48 | F13: 14H58 | G13: 100 | H13: 1 | I13: 650 | J13: 108.3333333 | K13: 10833 | M13: B TURBULENT
B14: 9 | C14: 10 | G14: 250 | J14: 0
B15: TO | C15: 10 | G15: 410 | J15: 0
B16: 23.5 | C16: 10 | G16: 250 | J16: 0
C17: 10 | G17: 100 | J17: 0
B18: FROM | C18: 10 | G18: 100 | J18: 0 | M18: C DILATION
C19: 10 | G19: 250 | J19: 0
B20: TO | C20: 10 | G20: 410 | J20: 0
C21: 10 | G21: 250 | J21: 0
C22: 10 | G22: 100 | J22: 0
B23: FROM | C23: 10 | G23: 100 | J23: 0 | M23: D WASH-OUT
C24: 10 | G24: 250 | J24: 0
B25: TO | C25: 10 | G25: 410 | J25: 0
C26: 10 | G26: 250 | J26: 0
C27: 10 | G27: 100 | J27: 0
B28: FROM | C28: 10 | G28: 100 | J28: 0 | M28: E VOID FILLING
C29: 10 | G29: 250 | J29: 0
B30: TO | C30: 10 | G30: 410 | J30: 0
C31: 10 | G31: 250 | J31: 0
C32: 10 | G32: 100 | J32: 0
B33: FROM | C33: 10 | G33: 100 | J33: 0 | M33: *
C34: 10 | G34: 250 | J34: 0
B35: TO | C35: 10 | G35: 410 | J35: 0
C36: 10 | G36: 250 | J36: 0
C37: 10 | G37: 100 | J37: 0
J39: * PARTING BEYOND PUMP CAPACITY
B40: REMARKS
B41: NO SEVERE CAVITIES
C43: REMARKS
B44: P/B | C44: W/S = 0.5
C45: GROUT MIX : CEMENT 50kg
C46: UCS - 0124 = 250g
C47: WATER = 25l

Sheet G5
A1: G5 - GROUT HOLE
A3: REPORT FORM & CALCULATIONS | M3: GROUP
A4: HOLE DEPTH : 24m
A5: DATE | B5: STAGE | C5: TESTING TIMES | G5: GAUGE PRESSURE Kpa | I5: Liter per Hr | J5: WATER INJECTED INTO HOLE IN TESTING PERIOD TOTAL QUANTITY READ FROM WATER METER)
A6: 2024-10-21 | C6: REQUIRED MINS. | D6: ACTUAL MINS. | E6: CLOCK TIMES | G6: REQUIRED | H6: ACTUAL | I6: 300 | K6: LUGEON VALUE
E7: FROM | F7: TO | I7: 60 | J7: LITRES | K7: FOR EACH TEST | L7: REPRESTNTA-TIVE FOR TESTED STAGE
B8: FROM | C8: 10 | D8: 10 | E8: 15H22 | F8: 15H32 | G8: 100 | H8: 0.1 | I8: 650 | J8: =SUM((I8/$I$7)*D8) -> 108.3333333 | K8: =SUM(J8*(G8/H8)) -> 108333 | M8: A LAMINAR
B9: 13 | C9: 10 | G9: 250 | J9: =SUM((I9/$I$7)*D9) -> 0 | K9: =SUM(J9*(G9/H9)) -> 
B10: TO | C10: 10 | G10: 410 | J10: 0
B11: 24 | C11: 10 | G11: 250 | J11: 0
C12: 10 | G12: 100 | J12: 0
B13: FROM | C13: 10 | D13: 10 | E13: 15H40 | F13: 15H55 | G13: 100 | H13: 0.9 | I13: 650 | J13: 108.3333333 | K13: 12037 | M13: B TURBULENT
B14: 9 | C14: 10 | G14: 250 | J14: 0
B15: TO | C15: 10 | G15: 410 | J15: 0
B16: 24 | C16: 10 | G16: 250 | J16: 0
C17: 10 | G17: 100 | J17: 0
B18: FROM | C18: 10 | G18: 100 | J18: 0 | M18: C DILATION
C19: 10 | G19: 250 | J19: 0
B20: TO | C20: 10 | G20: 410 | J20: 0
C21: 10 | G21: 250 | J21: 0
C22: 10 | G22: 100 | J22: 0
B23: FROM | C23: 10 | G23: 100 | J23: 0 | M23: D WASH-OUT
C24: 10 | G24: 250 | J24: 0
B25: TO | C25: 10 | G25: 410 | J25: 0
C26: 10 | G26: 250 | J26: 0
C27: 10 | G27: 100 | J27: 0
B28: FROM | C28: 10 | G28: 100 | J28: 0 | M28: E VOID FILLING
C29: 10 | G29: 250 | J29: 0
B30: TO | C30: 10 | G30: 410 | J30: 0
C31: 10 | G31: 250 | J31: 0
C32: 10 | G32: 100 | J32: 0
B33: FROM | C33: 10 | G33: 100 | J33: 0 | M33: *
C34: 10 | G34: 250 | J34: 0
B35: TO | C35: 10 | G35: 410 | J35: 0
C36: 10 | G36: 250 | J36: 0
C37: 10 | G37: 100 | J37: 0
J39: * PARTING BEYOND PUMP CAPACITY
B40: REMARKS
B41: SMALL CAVITY : 12.1m
C43: REMARKS
B44: P/B | C44: W/S = 0.5
C45: GROUT MIX : CEMENT 50kg
C46: UCS - 0124 = 250g
C47: WATER = 25l

Sheet G6
A1: G6 - GROUT HOLE
A3: REPORT FORM & CALCULATIONS | M3: GROUP
A4: HOLE DEPTH : 21.9m
A5: DATE | B5: STAGE | C5: TESTING TIMES | G5: GAUGE PRESSURE Kpa | I5: Liter per Hr | J5: WATER INJECTED INTO HOLE IN TESTING PERIOD TOTAL QUANTITY READ FROM WATER METER)
A6: 2024-10-18 | C6: REQUIRED MINS. | D6: ACTUAL MINS. | E6: CLOCK TIMES | G6: REQUIRED | H6: ACTUAL | I6: 300 | K6: LUGEON VALUE
E7: FROM | F7: TO | I7: 60 | J7: LITRES | K7: FOR EACH TEST | L7: REPRESTNTA-TIVE FOR TESTED STAGE
B8: FROM | C8: 10 | D8: 15 | E8: 09H20 | F8: 09H35 | G8: 100 | H8: 0.1 | I8: 650 | J8: =SUM((I8/$I$7)*D8) -> 162.5 | K8: =SUM(J8*(G8/H8)) -> 162500 | M8: A LAMINAR
B9: 10 | C9: 10 | G9: 250 | J9: =SUM((I9/$I$7)*D9) -> 0 | K9: =SUM(J9*(G9/H9)) -> 
B10: TO | C10: 10 | G10: 410 | J10: 0
B11: 21.9 | C11: 10 | G11: 250 | J11: 0
C12: 10 | G12: 100 | J12: 0
B13: FROM | C13: 10 | G13: 100 | H13: 0.1 | I13: 650 | J13: =SUM((I13/$I$7)*D13) -> 0 | K13: 0 | M13: B TURBULENT
C14: 10 | G14: 250 | J14: 0
B15: TO | C15: 10 | G15: 410 | J15: 0
C16: 10 | G16: 250 | J16: 0
C17: 10 | G17: 100 | J17: 0
B18: FROM | C18: 10 | G18: 100 | J18: 0 | M18: C DILATION
C19: 10 | G19: 250 | J19: 0
B20: TO | C20: 10 | G20: 410 | J20: 0
C21: 10 | G21: 250 | J21: 0
C22: 10 | G22: 100 | J22: 0
B23: FROM | C23: 10 | G23: 100 | J23: 0 | M23: D WASH-OUT
C24: 10 | G24: 250 | J24: 0
B25: TO | C25: 10 | G25: 410 | J25: 0
C26: 10 | G26: 250 | J26: 0
C27: 10 | G27: 100 | J27: 0
B28: FROM | C28: 10 | G28: 100 | J28: 0 | M28: E VOID FILLING
C29: 10 | G29: 250 | J29: 0
B30: TO | C30: 10 | G30: 410 | J30: 0
C31: 10 | G31: 250 | J31: 0
C32: 10 | G32: 100 | J32: 0
B33: FROM | C33: 10 | G33: 100 | J33: 0 | M33: *
C34: 10 | G34: 250 | J34: 0
B35: TO | C35: 10 | G35: 410 | J35: 0
C36: 10 | G36: 250 | J36: 0
C37: 10 | G37: 100 | J37: 0
J39: * PARTING BEYOND PUMP CAPACITY
B40: REMARKS
B41: MINOR CAVITY : 10.9m
B42: SEVERE CAVITY : 19.7m
C44: REMARKS
B45: P/B | C45: W/S = 0.5
C46: GROUT MIX : CEMENT 50kg
C47: UCS - 0124 = 250g
C48: WATER = 25l

Sheet G7
A1: G7 - GROUT HOLE
A3: REPORT FORM & CALCULATIONS | M3: GROUP
A4: HOLE DEPTH : 22.8m
A5: DATE | B5: STAGE | C5: TESTING TIMES | G5: GAUGE PRESSURE BARS | I5: Liter per Hr | J5: WATER INJECTED INTO HOLE IN TESTING PERIOD TOTAL QUANTITY READ FROM WATER METER)
A6: 2024-10-18 | C6: REQUIRED MINS. | D6: ACTUAL MINS. | E6: CLOCK TIMES | G6: REQUIRED | H6: ACTUAL | I6: 300 | K6: LUGEON VALUE
E7: FROM | F7: TO | I7: 60 | J7: LITRES | K7: FOR EACH TEST | L7: REPRESTNTA-TIVE FOR TESTED STAGE
B8: FROM | C8: 10 | D8: 8 | E8: 09H40 | F8: 09H48 | G8: 100 | H8: 0.1 | I8: 700 | J8: =SUM((I8/$I$7)*D8) -> 93.33333333 | K8: =SUM(J8*(G8/H8)) -> 93333 | M8: A LAMINAR
B9: 11 | C9: 10 | G9: 250 | J9: =SUM((I9/$I$7)*D9) -> 0 | K9: =SUM(J9*(G9/H9)) -> 
B10: TO | C10: 10 | G10: 410 | J10: 0
B11: 22.8 | C11: 10 | G11: 250 | J11: 0
C12: 10 | G12: 100 | J12: 0
B13: FROM | C13: 10 | D13: 12 | E13: 09H48 | F13: 10H00 | G13: 100 | H13: 0.1 | I13: 700 | J13: 140 | K13: 140000 | M13: B TURBULENT
B14: 11 | C14: 10 | G14: 250 | J14: 0
B15: TO | C15: 10 | G15: 410 | J15: 0
B16: 22.8 | C16: 10 | G16: 250 | J16: 0
C17: 10 | G17: 100 | J17: 0
B18: FROM | C18: 10 | D18: 10 | E18: 10H00 | F18: 10H20 | G18: 100 | H18: 2.5 | J18: 0 | K18: 0 | M18: C DILATION
B19: 11 | C19: 10 | G19: 250 | J19: 0
B20: TO | C20: 10 | G20: 410 | J20: 0
B21: 22.8 | C21: 10 | G21: 250 | J21: 0
C22: 10 | G22: 100 | J22: 0
B23: FROM | C23: 10 | D23: 10 | E23: 10H20 | F23: 10H30 | G23: 100 | H23: 4.5 | J23: 0 | K23: 0 | M23: D WASH-OUT
B24: 11 | C24: 10 | G24: 250 | J24: 0
B25: TO | C25: 10 | G25: 410 | J25: 0
B26: 22.8 | C26: 10 | G26: 250 | J26: 0
C27: 10 | G27: 100 | J27: 0
B28: FROM | C28: 10 | D28: 10 | E28: 10H30 | F28: 10H40 | G28: 100 | H28: 2.5 | J28: 0 | K28: 0 | M28: E VOID FILLING
B29: 11 | C29: 10 | G29: 250 | J29: 0
B30: TO | C30: 10 | G30: 410 | J30: 0
B31: 22.8 | C31: 10 | G31: 250 | J31: 0
C32: 10 | G32: 100 | J32: 0
B33: FROM | C33: 10 | G33: 100 | J33: 0 | M33: *
C34: 10 | G34: 250 | J34: 0
B35: TO | C35: 10 | G35: 410 | J35: 0
C36: 10 | G36: 250 | J36: 0
C37: 10 | D37: =SUM(D8:D36) -> 50 | G37: 100 | J37: 0
J39: * PARTING BEYOND PUMP CAPACITY
B40: REMARKS
B41: MINOR CAVITY : 19.1m
B42: ERRATIC PRESSURE. DIFFICULT TO KEEP AT ONE PLACE
C44: REMARKS
B45: P/B | C45: W/S = 0.5
C46: GROUT MIX : CEMENT 50kg
C47: UCS - 0124 = 250g
C48: WATER = 25l

Sheet G8
A1: G8 - GROUT HOLE
A3: REPORT FORM & CALCULATIONS | M3: GROUP
A4: HOLE DEPTH : 25.8m
A5: DATE | B5: STAGE | C5: TESTING TIMES | G5: GAUGE PRESSURE BARS | I5: Liter per Hr | J5: WATER INJECTED INTO HOLE IN TESTING PERIOD TOTAL QUANTITY READ FROM WATER METER)
A6: 2024-10-18 | C6: REQUIRED MINS. | D6: ACTUAL MINS. | E6: CLOCK TIMES | G6: REQUIRED | H6: ACTUAL | I6: 300 | K6: LUGEON VALUE
E7: FROM | F7: TO | I7: 60 | J7: LITRES | K7: FOR EACH TEST | L7: REPRESTNTA-TIVE FOR TESTED STAGE
B8: FROM | C8: 10 | D8: 15 | E8: 10H45 | F8: 10H50 | G8: 100 | H8: 0.1 | I8: 650 | J8: =SUM((I8/$I$7)*D8) -> 162.5 | K8: =SUM(J8*(G8/H8)) -> 162500 | M8: A LAMINAR
B9: 12 | C9: 10 | G9: 250 | J9: =SUM((I9/$I$7)*D9) -> 0 | K9: =SUM(J9*(G9/H9)) -> 
B10: TO | C10: 10 | G10: 410 | J10: 0
B11: 25.8 | C11: 10 | G11: 250 | J11: 0
C12: 10 | G12: 100 | J12: 0
B13: FROM | C13: 10 | G13: 100 | H13: 0.1 | I13: 700 | J13: 0 | K13: 0 | M13: B TURBULENT
C14: 10 | G14: 250 | J14: 0
B15: TO | C15: 10 | G15: 410 | J15: 0
C16: 10 | G16: 250 | J16: 0
C17: 10 | G17: 100 | J17: 0
B18: FROM | C18: 10 | G18: 100 | J18: 0 | M18: C DILATION
C19: 10 | G19: 250 | J19: 0
B20: TO | C20: 10 | G20: 410 | J20: 0
C21: 10 | G21: 250 | J21: 0
C22: 10 | G22: 100 | J22: 0
B23: FROM | C23: 10 | G23: 100 | J23: 0 | M23: D WASH-OUT
C24: 10 | G24: 250 | J24: 0
B25: TO | C25: 10 | G25: 410 | J25: 0
C26: 10 | G26: 250 | J26: 0
C27: 10 | G27: 100 | J27: 0
B28: FROM | C28: 10 | G28: 100 | J28: 0 | M28: E VOID FILLING
C29: 10 | G29: 250 | J29: 0
B30: TO | C30: 10 | G30: 410 | J30: 0
C31: 10 | G31: 250 | J31: 0
C32: 10 | G32: 100 | J32: 0
B33: FROM | C33: 10 | G33: 100 | J33: 0 | M33: *
C34: 10 | G34: 250 | J34: 0
B35: TO | C35: 10 | G35: 410 | J35: 0
C36: 10 | G36: 250 | J36: 0
C37: 10 | G37: 100 | J37: 0
J39: * PARTING BEYOND PUMP CAPACITY
B40: REMARKS
B41: SEVERE CAVITY : 21.4m
C43: REMARKS
B44: P/B | C44: W/S = 0.5
C45: GROUT MIX : CEMENT 50kg
C46: UCS - 0124 = 250g
C47: WATER = 25l

Sheet G9
A1: G9 - GROUT HOLE
A3: REPORT FORM & CALCULATIONS | M3: GROUP
A4: HOLE DEPTH : 23.7m
A5: DATE | B5: STAGE | C5: TESTING TIMES | G5: GAUGE PRESSURE Kpa | I5: Liter per Hr | J5: WATER INJECTED INTO HOLE IN TESTING PERIOD TOTAL QUANTITY READ FROM WATER METER)
A6: 2024-10-18 | C6: REQUIRED MINS. | D6: ACTUAL MINS. | E6: CLOCK TIMES | G6: REQUIRED | H6: ACTUAL | I6: 300 | K6: LUGEON VALUE
E7: FROM | F7: TO | I7: 60 | J7: LITRES | K7: FOR EACH TEST | L7: REPRESTNTA-TIVE FOR TESTED STAGE
B8: FROM | C8: 10 | D8: 15 | E8: 11H05 | F8: 11H20 | G8: 100 | H8: 0.1 | I8: 650 | J8: =SUM((I8/$I$7)*D8) -> 162.5 | K8: =SUM(J8*(G8/H8)) -> 162500 | M8: A LAMINAR
B9: 10 | C9: 10 | G9: 250 | J9: =SUM((I9/$I$7)*D9) -> 0 | K9: =SUM(J9*(G9/H9)) -> 
B10: TO | C10: 10 | G10: 410 | J10: 0
B11: 23.7 | C11: 10 | G11: 250 | J11: 0
C12: 10 | G12: 100 | J12: 0
B13: FROM | C13: 10 | G13: 100 | H13: 0.1 | I13: 650 | J13: 0 | K13: 0 | M13: B TURBULENT
C14: 10 | G14: 250 | J14: 0
B15: TO | C15: 10 | G15: 410 | J15: 0
C16: 10 | G16: 250 | J16: 0
C17: 10 | G17: 100 | J17: 0
B18: FROM | C18: 10 | G18: 100 | J18: 0 | M18: C DILATION
C19: 10 | G19: 250 | J19: 0
B20: TO | C20: 10 | G20: 410 | J20: 0
C21: 10 | G21: 250 | J21: 0
C22: 10 | G22: 100 | J22: 0
B23: FROM | C23: 10 | G23: 100 | J23: 0 | M23: D WASH-OUT
C24: 10 | G24: 250 | J24: 0
B25: TO | C25: 10 | G25: 410 | J25: 0
C26: 10 | G26: 250 | J26: 0
C27: 10 | G27: 100 | J27: 0
B28: FROM | C28: 10 | G28: 100 | J28: 0 | M28: E VOID FILLING
C29: 10 | G29: 250 | J29: 0
B30: TO | C30: 10 | G30: 410 | J30: 0
C31: 10 | G31: 250 | J31: 0
C32: 10 | G32: 100 | J32: 0
B33: FROM | C33: 10 | G33: 100 | J33: 0 | M33: *
C34: 10 | G34: 250 | J34: 0
B35: TO | C35: 10 | G35: 410 | J35: 0
C36: 10 | G36: 250 | J36: 0
C37: 10 | G37: 100 | J37: 0
J39: * PARTING BEYOND PUMP CAPACITY
B40: REMARKS
B41: CAVITY : 21.5m
C43: REMARKS
B44: P/B | C44: W/S = 0.5
C45: GROUT MIX : CEMENT 50kg
C46: UCS - 0124 = 250g
C47: WATER = 25l

Sheet G10
A1: G10 - GROUT HOLE
A3: REPORT FORM & CALCULATIONS | M3: GROUP
A4: HOLE DEPTH : 23.7m
A5: DATE | B5: STAGE | C5: TESTING TIMES | G5: GAUGE PRESSURE Kpa | I5: Liter per Hr | J5: WATER INJECTED INTO HOLE IN TESTING PERIOD TOTAL QUANTITY READ FROM WATER METER)
A6: 2024-10-18 | C6: REQUIRED MINS. | D6: ACTUAL MINS. | E6: CLOCK TIMES | G6: REQUIRED | H6: ACTUAL | I6: 300 | K6: LUGEON VALUE
E7: FROM | F7: TO | I7: 60 | J7: LITRES | K7: FOR EACH TEST | L7: REPRESTNTA-TIVE FOR TESTED STAGE
B8: FROM | C8: 10 | D8: 15 | E8: 13H40 | F8: 13H55 | G8: 100 | H8: 0.1 | I8: 650 | J8: =SUM((I8/$I$7)*D8) -> 162.5 | K8: =SUM(J8*(G8/H8)) -> 162500 | M8: A LAMINAR
B9: 11 | C9: 10 | G9: 250 | J9: =SUM((I9/$I$7)*D9) -> 0 | K9: =SUM(J9*(G9/H9)) -> 
B10: TO | C10: 10 | G10: 410 | J10: 0
B11: 23.7 | C11: 10 | G11: 250 | J11: 0
C12: 10 | G12: 100 | J12: 0
B13: FROM | C13: 10 | G13: 100 | I13: 650 | J13: 0 | M13: B TURBULENT
C14: 10 | G14: 250 | J14: 0
B15: TO | C15: 10 | G15: 410 | J15: 0
C16: 10 | G16: 250 | J16: 0
C17: 10 | G17: 100 | J17: 0
B18: FROM | C18: 10 | G18: 100 | J18: 0 | M18: C DILATION
C19: 10 | G19: 250 | J19: 0
B20: TO | C20: 10 | G20: 410 | J20: 0
C21: 10 | G21: 250 | J21: 0
C22: 10 | G22: 100 | J22: 0
B23: FROM | C23: 10 | G23: 100 | J23: 0 | M23: D WASH-OUT
C24: 10 | G24: 250 | J24: 0
B25: TO | C25: 10 | G25: 410 | J25: 0
C26: 10 | G26: 250 | J26: 0
C27: 10 | G27: 100 | J27: 0
B28: FROM | C28: 10 | G28: 100 | J28: 0 | M28: E VOID FILLING
C29: 10 | G29: 250 | J29: 0
B30: TO | C30: 10 | G30: 410 | J30: 0
C31: 10 | G31: 250 | J31: 0
C32: 10 | G32: 100 | J32: 0
B33: FROM | C33: 10 | G33: 100 | J33: 0 | M33: *
C34: 10 | G34: 250 | J34: 0
B35: TO | C35: 10 | G35: 410 | J35: 0
C36: 10 | G36: 250 | J36: 0
C37: 10 | G37: 100 | J37: 0
J39: * PARTING BEYOND PUMP CAPACITY
B40: REMARKS
B41: SEVERE CAVITY : 16.5m
B42: CAVITY (MINOR) : 4.8m
B43: PACKER : 11.0m FOR GROUTING PRESSURE KPA 250
B44: 10 BAGS
C46: REMARKS
B47: P/B | C47: W/S = 0.5
C48: GROUT MIX : CEMENT 50kg
C49: UCS - 0124 = 250g
C50: WATER = 25l

Sheet G11
A1: G11 - GROUT HOLE
A3: REPORT FORM & CALCULATIONS | M3: GROUP
A4: HOLE DEPTH : 22.7m
A5: DATE | B5: STAGE | C5: TESTING TIMES | G5: GAUGE PRESSURE BARS | I5: Liter per Hr | J5: WATER INJECTED INTO HOLE IN TESTING PERIOD TOTAL QUANTITY READ FROM WATER METER)
A6: 2024-10-18 | C6: REQUIRED MINS. | D6: ACTUAL MINS. | E6: CLOCK TIMES | G6: REQUIRED | H6: ACTUAL | I6: 300 | K6: LUGEON VALUE
E7: FROM | F7: TO | I7: 60 | J7: LITRES | K7: FOR EACH TEST | L7: REPRESTNTA-TIVE FOR TESTED STAGE
B8: FROM | C8: 10 | D8: 17 | E8: 14H18 | F8: 14H35 | G8: 100 | H8: 0.1 | I8: 650 | J8: =SUM((I8/$I$7)*D8) -> 184.1666667 | K8: =SUM(J8*(G8/H8)) -> 184167 | M8: A LAMINAR
B9: 11 | C9: 10 | G9: 250 | J9: =SUM((I9/$I$7)*D9) -> 0 | K9: =SUM(J9*(G9/H9)) -> 
B10: TO | C10: 10 | G10: 410 | J10: 0
B11: 22.7 | C11: 10 | G11: 250 | J11: 0
C12: 10 | G12: 100 | J12: 0
B13: FROM | C13: 10 | G13: 100 | I13: 650 | J13: 0 | M13: B TURBULENT
C14: 10 | G14: 250 | J14: 0
B15: TO | C15: 10 | G15: 410 | J15: 0
C16: 10 | G16: 250 | J16: 0
C17: 10 | G17: 100 | J17: 0
B18: FROM | C18: 10 | G18: 100 | J18: 0 | M18: C DILATION
C19: 10 | G19: 250 | J19: 0
B20: TO | C20: 10 | G20: 410 | J20: 0
C21: 10 | G21: 250 | J21: 0
C22: 10 | G22: 100 | J22: 0
B23: FROM | C23: 10 | G23: 100 | J23: 0 | M23: D WASH-OUT
C24: 10 | G24: 250 | J24: 0
B25: TO | C25: 10 | G25: 410 | J25: 0
C26: 10 | G26: 250 | J26: 0
C27: 10 | G27: 100 | J27: 0
B28: FROM | C28: 10 | G28: 100 | J28: 0 | M28: E VOID FILLING
C29: 10 | G29: 250 | J29: 0
B30: TO | C30: 10 | G30: 410 | J30: 0
C31: 10 | G31: 250 | J31: 0
C32: 10 | G32: 100 | J32: 0
B33: FROM | C33: 10 | G33: 100 | J33: 0 | M33: *
C34: 10 | G34: 250 | J34: 0
B35: TO | C35: 10 | G35: 410 | J35: 0
C36: 10 | G36: 250 | J36: 0
C37: 10 | G37: 100 | J37: 0
J39: * PARTING BEYOND PUMP CAPACITY
B40: REMARKS
B41: SEVERE CAVITY : 22.2m
B42: GROUT : 22/10
B43: DENSITY : 960g
B44: PACKER : 11.5m
C46: REMARKS
B47: P/B | C47: W/S = 0.5
C48: GROUT MIX : CEMENT 50kg
C49: UCS - 0124 = 250g
C50: WATER = 25l

Sheet TEST HOLE 1
A1: TEST HOLE 1 : HERMAN LOMBAARD
A3: REPORT FORM & CALCULATIONS | M3: GROUP
A5: DATE | B5: STAGE | C5: TESTING TIMES | G5: GAUGE PRESSURE BARS | I5: Liter per Hr | J5: WATER INJECTED INTO HOLE IN TESTING PERIOD TOTAL QUANTITY READ FROM WATER METER)
A6: 2024-09-13 | C6: REQUIRED MINS. | D6: ACTUAL MINS. | E6: CLOCK TIMES | G6: REQUIRED | H6: ACTUAL | I6: 300 | K6: LUGEON VALUE
E7: FROM | F7: TO | I7: 60 | J7: LITRES | K7: FOR EACH TEST | L7: REPRESTNTA-TIVE FOR TESTED STAGE
A8: T1 | B8: FROM | C8: 10 | D8: 10 | E8: 13H00 | F8: 13H10 | G8: 100 | H8: 100 | I8: 138 | J8: =SUM((I8/$I$7)*D8) -> 23 | K8: =SUM(J8*(G8/H8)) -> 23 | M8: A LAMINAR
B9: 5m | C9: 10 | D9: 11 | E9: 13H15 | F9: 13H26 | G9: 250 | H9: 200 | I9: 350 | J9: =SUM((I9/$I$7)*D9) -> 64.16666667 | K9: =SUM(J9*(G9/H9)) -> 80
B10: TO | C10: 10 | D10: 10 | E10: 13H30 | F10: 13H40410 | G10: 410 | H10: 230 | I10: 650 | J10: 108.3333333 | K10: 193
B11: 9.3m | C11: 10 | D11: 9 | E11: 13H41 | F11: 13H50 | G11: 250 | H11: 250 | I11: 355 | J11: 53.25 | K11: 53
C12: 10 | D12: 8 | E12: 13H52 | F12: 14H00 | G12: 100 | H12: 100 | I12: 135 | J12: 18 | K12: 18
A13: T2 | B13: FROM | C13: 10 | D13: 10 | E13: 14H28 | F13: 14H8 | G13: 100 | H13: 100 | I13: 650 | J13: 108.3333333 | K13: 108 | M13: B TURBULENT
B14: 1m | C14: 10 | D14: 10 | E14: 14H39 | F14: 14H49 | G14: 250 | H14: 135 | I14: 800 | J14: 133.3333333 | K14: 247
B15: TO | C15: 10 | D15: 11 | E15: 14H50 | F15: 15H01 | G15: 410 | H15: 135 | I15: 830 | J15: 152.1666667 | K15: 462
B16: 9.3m | C16: 10 | D16: 10 | E16: 15H02 | F16: 15H12 | G16: 250 | H16: 135 | I16: 950 | J16: 158.3333333 | K16: 293
C17: 10 | D17: 10 | E17: 15H13 | F17: 15H23 | G17: 100 | H17: 100 | I17: 750 | J17: 125 | K17: 125
A18: T3 | B18: FROM | C18: 10 | D18: 10 | E18: 09H09 | F18: 09H19 | G18: 100 | H18: 80 | I18: 800 | J18: 133.3333333 | K18: 167 | M18: C DILATION
B19: 5.5m | C19: 10 | D19: 10 | E19: 09H20 | F19: 09H30 | G19: 250 | H19: 0.1 | I19: 850 | J19: 141.6666667 | K19: 354167
B20: TO | C20: 10 | D20: 10 | E20: 09H30 | F20: 09H40 | G20: 410 | H20: 0.1 | I20: 850 | J20: 141.6666667 | K20: 580833
B21: 9.3m | C21: 10 | D21: 8 | E21: 09H41 | F21: 09H49 | G21: 250 | H21: 0.1 | I21: 850 | J21: 113.3333333 | K21: 283333
B22: 53 | C22: 10 | D22: 6 | E22: 09H55 | F22: 10H01 | G22: 100 | H22: 8.5 | I22: 850 | J22: 85 | K22: 1000
A23: T4 | B23: FROM | C23: 10 | D23: 10 | E23: 10H49 | F23: 10H59 | G23: 100 | H23: 100 | I23: 50 | J23: 8.333333333 | K23: 8 | M23: D WASH-OUT
B24: 7.5m | C24: 10 | D24: 10 | E24: 11H00 | F24: 11H10 | G24: 250 | H24: 250 | I24: 65 | J24: 10.83333333 | K24: 11
B25: TO | C25: 10 | D25: 11 | E25: 11H12 | F25: 11H23 | G25: 410 | H25: 410 | I25: 125 | J25: 22.91666667 | K25: 23
B26: 9.3m | C26: 10 | D26: 10 | E26: 11H25 | F26: 11H34 | G26: 250 | H26: 250 | I26: 60 | J26: 10 | K26: 10
B27: 54 | C27: 10 | D27: 10 | E27: 11H35 | F27: 11H45 | G27: 100 | H27: 100 | I27: 60 | J27: 10 | K27: 10
A28: T5 | B28: FROM | C28: 10 | D28: 10 | E28: 13H04 | F28: 13H14 | G28: 100 | H28: 0.1 | I28: 850 | J28: 141.6666667 | K28: 141667 | M28: E VOID FILLING
B29: 0.9m | C29: 10 | D29: 10 | E29: 13H15 | F29: 13H25 | G29: 250 | H29: 0.1 | I29: 850 | J29: 141.6666667 | K29: 354167
B30: TO | C30: 10 | D30: 11 | E30: 13H26 | F30: 13H37 | G30: 410 | H30: 0.1 | I30: 850 | J30: 155.8333333 | K30: 638917
B31: 9.3m | C31: 10 | D31: 3 | E31: 13H38 | F31: 13H41 | G31: 250 | H31: 0.1 | I31: 850 | J31: 42.5 | K31: 106250
C32: 10 | D32: 4 | E32: 13H42 | F32: 13H46 | G32: 100 | H32: 0.1 | I32: 850 | J32: 56.66666667 | K32: 56667
B33: FROM | C33: 10 | J33: 0
C34: 10 | J34: 0
B35: TO | C35: 10 | J35: 0
C36: 10 | J36: 0
C37: 10 | J37: =SUM((I37/$I$7)*D38) -> 0
D38: =SUM(D8:D36) -> 232
J39: * PARTING BEYOND PUMP CAPACITY
C41: REMARKS
B42: P/B | C42: W/S = 0.5
C43: GROUT MIX : CEMENT 50kg
C44: UCS - 0124 = 250g
C45: WATER = 25l

Sheet TEST HOLE 3
A1: TEST HOLE 3 @ 10.3m = 89 = DPT
A3: REPORT FORM & CALCULATIONS | M3: GROUP
A5: DATE | B5: STAGE | C5: TESTING TIMES | G5: GAUGE PRESSURE Kpa | I5: Liter per Hr | J5: WATER INJECTED INTO HOLE IN TESTING PERIOD TOTAL QUANTITY READ FROM WATER METER)
A6: 2024-10-09 | C6: REQUIRED MINS. | D6: ACTUAL MINS. | E6: CLOCK TIMES | G6: REQUIRED | H6: ACTUAL | I6: 300 | K6: LUGEON VALUE
E7: FROM | F7: TO | I7: 60 | J7: LITRES | K7: FOR EACH TEST | L7: REPRESTNTA-TIVE FOR TESTED STAGE
A8: T HOLE 1 | B8: FROM | C8: 10 | D8: 10 | E8: 13h58 | F8: 14h08 | G8: 100 | H8: 100 | I8: 150 | J8: =SUM((I8/$I$7)*D8) -> 25 | K8: =SUM(J8*(G8/H8)) -> 25 | M8: A LAMINAR - T1
B9: 5 | C9: 10 | D9: 10 | E9: 14h09 | F9: 14h19 | G9: 250 | H9: 250 | I9: 500 | J9: =SUM((I9/$I$7)*D9) -> 83.33333333 | K9: =SUM(J9*(G9/H9)) -> 83
B10: TO | C10: 10 | D10: 7 | E10: 14h20 | F10: 14h27 | G10: 410 | H10: 350 | I10: 650 | J10: 75.83333333 | K10: 89
B11: 10.3 | C11: 10 | D11: 9 | E11: 14h28 | F11: 14h37 | G11: 250 | H11: 225 | I11: 550 | J11: 82.5 | K11: 92
B12: 1st stage | C12: 10 | D12: 9 | E12: 14h38 | F12: 14H47 | G12: 100 | H12: 100 | I12: 150 | J12: 22.5 | K12: 23
A13: T HOLE 1 | B13: FROM | C13: 10 | D13: 10 | E13: 15H02 | F13: 15h12 | G13: 100 | H13: 100 | I13: 350 | J13: 58.33333333 | K13: 58 | M13: B TURBULENT - T2
B14: 1m | C14: 10 | E14: 15H13 | F14: 15H19 | G14: 250 | H14: 250 | I14: 650 | J14: 0 | K14: 0
B15: TO | C15: 10 | G15: 410 | H15: 200 | I15: 650 | J15: 0 | K15: 0
B16: 0.3 | C16: 10 | D16: 6 | E16: 15H20 | F16: 15H25 | G16: 250 | H16: 150 | I16: 650 | J16: 65 | K16: 108
B17: 2nd stage | C17: 10 | D17: 7 | E17: 15H27 | F17: 15H37 | G17: 100 | H17: 100 | I17: 450 | J17: 52.5 | K17: 53
A18: 2024-10-11 | B18: FROM | C18: 10 | D18: 10 | E18: 13H06 | F18: 13H16 | G18: 100 | H18: 100 | I18: 175 | J18: 29.16666667 | K18: 29 | M18: C DILATION - T3
C19: 10 | D19: 10 | E19: 13H17 | F19: 13H27 | G19: 250 | H19: 250 | I19: 525 | J19: 87.5 | K19: 88
B20: TO | C20: 10 | D20: 6 | E20: 13H28 | F20: 13H33 | G20: 410 | H20: 375 | I20: 650 | J20: 65 | K20: 71
C21: 10 | D21: 6 | E21: 13H35 | F21: 13H41 | G21: 250 | H21: 100 | I21: 550 | J21: 55 | K21: 138
C22: 10 | D22: 8 | E22: 13H42 | F22: 13H50 | G22: 100 | H22: 100 | I22: 175 | J22: 23.33333333 | K22: 23
A23: 2024-10-15 | B23: FROM | C23: 10 | D23: 10 | E23: 07H20 | F23: 07h30 | G23: 100 | H23: 110 | I23: 250 | J23: 41.66666667 | K23: 38 | M23: D WASH-OUT - T4
B24: 1m | C24: 10 | D24: 10 | E24: 07H33 | F24: 07H43 | G24: 250 | H24: 250 | I24: 4.3 | J24: 0.7166666667 | K24: 1
B25: TO | C25: 10 | D25: 10 | E25: 07H45 | F25: 07H55 | G25: 410 | H25: 400 | I25: 650 | J25: 108.3333333 | K25: 111
C26: 10 | D26: 10 | E26: 08H00 | F26: 08H10 | G26: 250 | H26: 250 | I26: 500 | J26: 83.33333333 | K26: 83
C27: 10 | D27: 10 | E27: 08H12 | F27: 08H22 | G27: 100 | H27: 100 | I27: 450 | J27: 75 | K27: 75
B28: FROM | C28: 10 | G28: 100 | J28: 0 | M28: E VOID FILLING - T5
C29: 10 | G29: 250 | J29: 0
B30: TO | C30: 10 | G30: 410 | J30: 0
C31: 10 | G31: 250 | J31: 0
C32: 10 | G32: 100 | J32: 0
B33: FROM | C33: 10 | G33: 100 | J33: 0 | M33: T6
C34: 10 | G34: 250 | J34: 0
B35: TO | C35: 10 | G35: 410 | J35: 0
C36: 10 | G36: 250 | J36: 0
C37: 10 | G37: 100 | J37: =SUM((I37/$I$7)*D38) -> 0
D38: =SUM(D8:D36) -> 158
J39: * PARTING BEYOND PUMP CAPACITY
B40: REMARKS
A41: P/B | B41: W/S = 0.5
B42: GROUT MIX : CEMENT 50kg
B43: UCS - 0124 = 250g
B44: WATER = 25l

Sheet TEST HOLE 3(2)
A1: TEST HOLE 3 @ 10.3 - 89 - DPT
A3: REPORT FORM & CALCULATIONS | M3: GROUP
A5: DATE | B5: STAGE | C5: TESTING TIMES | G5: GAUGE PRESSURE Kpa | I5: Liter per Hr | J5: WATER INJECTED INTO HOLE IN TESTING PERIOD TOTAL QUANTITY READ FROM WATER METER)
C6: REQUIRED MINS. | D6: ACTUAL MINS. | E6: CLOCK TIMES | G6: REQUIRED | H6: ACTUAL | I6: 300 | K6: LUGEON VALUE
E7: FROM | F7: TO | I7: 60 | J7: LITRES | K7: FOR EACH TEST | L7: REPRESTNTA-TIVE FOR TESTED STAGE
B8: FROM | C8: 10 | D8: 10 | G8: 100 | H8: 100 | I8: 550 | J8: =SUM((I8/$I$7)*D8) -> 91.66666667 | K8: =SUM(J8*(G8/H8)) -> 92 | M8: A LAMINAR
B9: 2 | C9: 10 | D9: 10 | G9: 250 | H9: 200 | I9: 475 | J9: =SUM((I9/$I$7)*D9) -> 79.16666667 | K9: =SUM(J9*(G9/H9)) -> 99
B10: TO | C10: 10 | G10: 410 | J10: 0
B11: 10.3 | C11: 10 | G11: 250 | J11: 0
B12: 51 | C12: 10 | G12: 100 | J12: 0
B13: FROM | C13: 10 | D13: 10 | G13: 100 | H13: 100 | I13: 550 | J13: 91.66666667 | K13: 92 | M13: B TURBULENT
B14: 4m | C14: 10 | D14: 10 | G14: 250 | H14: 200 | I14: 400 | J14: 66.66666667 | K14: 83
B15: TO | C15: 10 | G15: 410 | J15: 0
B16: 10.3 | C16: 10 | G16: 250 | J16: 0
B17: 52 | C17: 10 | G17: 100 | J17: 0
B18: FROM | C18: 10 | D18: 10 | G18: 100 | H18: 100 | I18: 550 | J18: 91.66666667 | K18: 92 | M18: C DILATION
B19: 6 | C19: 10 | D19: 10 | G19: 250 | H19: 200 | I19: 500 | J19: 83.33333333 | K19: 104
B20: TO | C20: 10 | G20: 410 | J20: 0
B21: 10.3 | C21: 10 | G21: 250 | J21: 0
B22: 53 | C22: 10 | G22: 100 | J22: 0
B23: FROM | C23: 10 | D23: 10 | G23: 100 | H23: 100 | I23: 10 | J23: 1.666666667 | K23: 2 | M23: D WASH-OUT
B24: 8 | C24: 10 | D24: 10 | G24: 250 | H24: 200 | I24: 30 | J24: =SUM((I24/$I$7)*D24) -> 5 | K24: 6
B25: TO | C25: 10 | G25: 410 | J25: 0
B26: 10.3 | C26: 10 | G26: 250 | J26: 0
B27: 54 | C27: 10 | G27: 100 | J27: 0
B28: FROM | C28: 10 | G28: 100 | J28: 0 | M28: E VOID FILLING
C29: 10 | G29: 250 | J29: 0
B30: TO | C30: 10 | G30: 410 | J30: 0
C31: 10 | G31: 250 | J31: 0
B32: 55 | C32: 10 | G32: 100 | J32: 0
B33: FROM | C33: 10 | G33: 100 | J33: 0
C34: 10 | G34: 250 | J34: 0
B35: TO | C35: 10 | G35: 410 | J35: 0
C36: 10 | G36: 250 | J36: 0
C37: 10 | G37: 100 | J37: 0
J39: * PARTING BEYOND PUMP CAPACITY
C40: REMARKS
B41: P/B | C41: W/S = 0.5
C42: GROUT MIX : CEMENT 50kg
C43: UCS - 0124 = 250g
C44: WATER = 25l

Sheet TEST 2
A1: TEST 2
A3: REPORT FORM & CALCULATIONS | M3: GROUP
J4: 7.5
A5: DATE | B5: STAGE | C5: TESTING TIMES | G5: GAUGE PRESSURE BARS | I5: Liter per Hr | J5: WATER INJECTED INTO HOLE IN TESTING PERIOD TOTAL QUANTITY READ FROM WATER METER)
A6: 2024-10-04 | C6: REQUIRED MINS. | D6: ACTUAL MINS. | E6: CLOCK TIMES | G6: REQUIRED | H6: ACTUAL | I6: 300 | K6: LUGEON VALUE
E7: FROM | F7: TO | I7: 60 | J7: LITRES | K7: FOR EACH TEST | L7: REPRESTNTA-TIVE FOR TESTED STAGE
B8: FROM | C8: 10 | D8: 4.5 | E8: 09H48 | F8: 09H54 | G8: 100 | H8: 4.5 | I8: 250 | J8: =SUM((I8/$I$7)*D8) -> 18.75 | K8: =SUM(J8*(G8/H8)) -> 417 | M8: A LAMINAR
B9: 8m | C9: 10 | D9: 4.5 | E9: 09H58 | F9: 10H04 | G9: 250 | H9: 200 | I9: 104 | J9: =SUM((I9/$I$7)*D9) -> 7.8 | K9: =SUM(J9*(G9/H9)) -> 10
B10: TO | C10: 10 | G10: 410 | H10: 450 | I10: 250 | J10: 0 | K10: 0
B11: 5m | C11: 10 | G11: 250 | J11: 0
C12: 10 | G12: 100 | J12: 0
B13: FROM | C13: 10 | E13: 16H03 | F13: 16H10 | G13: 100 | H13: 1.8 | I13: 800 | J13: 0 | K13: 0 | M13: B TURBULENT
B14: 6m | C14: 10 | E14: 16H15 | F14: 16H20 | G14: 250 | H14: 2 | I14: 700 | J14: 0 | K14: 0
B15: TO | C15: 10 | G15: 410 | J15: 0
B16: 8m | C16: 10 | G16: 250 | J16: 0
C17: 10 | G17: 100 | J17: 0
B18: FROM | C18: 10 | D18: 10 | E18: 09H32 | F18: 09H42 | G18: 100 | H18: 100 | I18: 425 | J18: 70.83333333 | K18: 71 | M18: C DILATION
B19: 5 | C19: 10 | D19: 10 | E19: 09H43 | F19: 09H3 | G19: 250 | H19: 85 | I19: 580 | J19: 96.66666667 | K19: 284
B20: TO | C20: 10 | D20: 5 | E20: 09H54 | F20: 09H59 | G20: 410 | H20: 85 | I20: 650 | J20: 54.16666667 | K20: 261
B21: 8 | C21: 10 | D21: 10 | E21: 10H03 | F21: 10H13 | G21: 250 | H21: 85 | I21: 550 | J21: 91.66666667 | K21: 270
B22: 53 | C22: 10 | D22: 10 | E22: 10H14 | F22: 10H24 | G22: 100 | H22: 100 | I22: 425 | J22: 70.83333333 | K22: 71
B23: FROM | C23: 10 | G23: 100 | J23: 0 | M23: D WASH-OUT
C24: 10 | G24: 250 | J24: 0
B25: TO | C25: 10 | G25: 410 | J25: 0
C26: 10 | G26: 250 | J26: 0
B27: 54 | C27: 10 | G27: 100 | J27: 0
B28: FROM | C28: 10 | G28: 100 | J28: 0 | M28: E VOID FILLING
C29: 10 | G29: 250 | J29: 0
B30: TO | C30: 10 | G30: 410 | J30: 0
C31: 10 | G31: 250 | J31: 0
C32: 10 | G32: 100 | J32: 0
B33: FROM | C33: 10 | G33: 100 | J33: 0
C34: 10 | G34: 250 | J34: 0
B35: TO | C35: 10 | G35: 410 | J35: 0
C36: 10 | G36: 250 | J36: 0
C37: 10 | D37: =SUM(D8:D36) -> 54 | G37: 100 | J37: 0
J39: * PARTING BEYOND PUMP CAPACITY
C40: REMARKS
B41: P/B | C41: W/S = 0.5
C42: GROUT MIX : CEMENT 50kg
C43: UCS - 0124 = 250g
C44: WATER = 25l

Sheet TEST HOLE 4
A1: TEST HOLE 4
A3: REPORT FORM & CALCULATIONS | M3: GROUP
A5: DATE | B5: STAGE | C5: TESTING TIMES | G5: GAUGE PRESSURE Kpa | I5: Liter per Hr | J5: WATER INJECTED INTO HOLE IN TESTING PERIOD TOTAL QUANTITY READ FROM WATER METER)
A6: 2024-10-02 | C6: REQUIRED MINS. | D6: ACTUAL MINS. | E6: CLOCK TIMES | G6: REQUIRED | H6: ACTUAL | I6: 300 | K6: LUGEON VALUE
E7: FROM | F7: TO | I7: 60 | J7: LITRES | K7: FOR EACH TEST | L7: REPRESTNTA-TIVE FOR TESTED STAGE
A8: T1 HERMAN 2024/10/02 | B8: FROM | C8: 10 | E8: 11H45 | G8: 100 | I8: 250 | J8: =SUM((I8/$I$7)*D8) -> 0 | K8: =SUM(J8*(G8/H8)) ->  | M8: A LAMINAR
B9: 5.5m | C9: 10 | G9: 250 | I9: 104 | J9: =SUM((I9/$I$7)*D9) -> 0 | K9: =SUM(J9*(G9/H9)) -> 
B10: TO | C10: 10 | G10: 410 | I10: 250 | J10: 0
B11: 9.3m | C11: 10 | G11: 250 | J11: 0
C12: 10 | G12: 100 | J12: 0
A13: T2 CPH 2024/10/03 | B13: FROM | C13: 10 | G13: 100 | I13: 800 | J13: 0 | M13: B TURBULENT
C14: 10 | G14: 250 | I14: 700 | J14: 0
B15: TO | C15: 10 | G15: 410 | J15: 0
C16: 10 | G16: 250 | J16: 0
C17: 10 | G17: 100 | J17: 0
A18: T3 CPH 2024/10/04 | B18: FROM | C18: 10 | G18: 100 | I18: 425 | J18: 0 | M18: C DILATION
C19: 10 | G19: 250 | I19: 580 | J19: 0
B20: TO | C20: 10 | G20: 410 | I20: 650 | J20: 0
C21: 10 | G21: 250 | I21: 550 | J21: 0
B22: 53 | C22: 10 | G22: 100 | I22: 425 | J22: 0
B23: FROM | C23: 10 | G23: 100 | J23: 0 | M23: D WASH-OUT
C24: 10 | G24: 250 | J24: 0
B25: TO | C25: 10 | G25: 410 | J25: 0
C26: 10 | G26: 250 | J26: 0
B27: 54 | C27: 10 | G27: 100 | J27: 0
B28: FROM | C28: 10 | G28: 100 | J28: 0 | M28: E VOID FILLING
C29: 10 | G29: 250 | J29: 0
B30: TO | C30: 10 | G30: 410 | J30: 0
C31: 10 | G31: 250 | J31: 0
C32: 10 | G32: 100 | J32: 0
B33: FROM | C33: 10 | G33: 100 | J33: 0
C34: 10 | G34: 250 | J34: 0
B35: TO | C35: 10 | G35: 410 | J35: 0
C36: 10 | G36: 250 | J36: 0
C37: 10 | G37: 100 | J37: 0
J39: * PARTING BEYOND PUMP CAPACITY
B40: MIX 2
B41: SEMENT 50
B42: UCS-012A 150g
B43: WATER 20 Litres
B44: GROUT MIX
B45: CEMENT 50kg
B46: UCS-012A 150g
B47: WATER 8 Litres
C49: REMARKS
B50: P/B | C50: W/S = 0.5
C51: GROUT MIX : CEMENT 50kg
C52: UCS - 0124 = 250g
C53: WATER = 25l

Sheet TEST HOLE 5
A1: TEST HOLE 5
A3: REPORT FORM & CALCULATIONS | M3: GROUP
A5: DATE | B5: STAGE | C5: TESTING TIMES | G5: GAUGE PRESSURE BARS | I5: Liter per Hr | J5: WATER INJECTED INTO HOLE IN TESTING PERIOD TOTAL QUANTITY READ FROM WATER METER)
A6: 2024-10-02 | C6: REQUIRED MINS. | D6: ACTUAL MINS. | E6: CLOCK TIMES | G6: REQUIRED | H6: ACTUAL | I6: 300 | K6: LUGEON VALUE
E7: FROM | F7: TO | I7: 60 | J7: LITRES | K7: FOR EACH TEST | L7: REPRESTNTA-TIVE FOR TESTED STAGE
A8: T1 HERMAN 2024/10/02 | B8: FROM | C8: 10 | G8: 100 | I8: 250 | J8: =SUM((I8/$I$7)*D8) -> 0 | K8: =SUM(J8*(G8/H8)) ->  | M8: A LAMINAR
C9: 10 | G9: 250 | I9: 104 | J9: =SUM((I9/$I$7)*D9) -> 0 | K9: =SUM(J9*(G9/H9)) -> 
B10: TO | C10: 10 | G10: 410 | I10: 250 | J10: 0
C11: 10 | G11: 250 | J11: 0
C12: 10 | G12: 100 | J12: 0
A13: T2 HERMAN | B13: FROM | C13: 10 | G13: 100 | I13: 800 | J13: 0 | M13: B TURBULENT
C14: 10 | G14: 250 | I14: 700 | J14: 0
B15: TO | C15: 10 | G15: 410 | J15: 0
C16: 10 | G16: 250 | J16: 0
C17: 10 | G17: 100 | J17: 0
A18: T3 HERMAN 2024/10/08 | B18: FROM | C18: 10 | G18: 100 | I18: 425 | J18: 0 | M18: C DILATION
C19: 10 | G19: 250 | I19: 580 | J19: 0
B20: TO | C20: 10 | G20: 410 | I20: 650 | J20: 0
C21: 10 | G21: 250 | I21: 550 | J21: 0
B22: 53 | C22: 10 | G22: 100 | I22: 425 | J22: 0
B23: FROM | C23: 10 | G23: 100 | J23: 0 | M23: D WASH-OUT
C24: 10 | G24: 250 | J24: 0
B25: TO | C25: 10 | G25: 410 | J25: 0
C26: 10 | G26: 250 | J26: 0
B27: 54 | C27: 10 | G27: 100 | J27: 0
B28: FROM | C28: 10 | G28: 100 | J28: 0 | M28: E VOID FILLING
C29: 10 | G29: 250 | J29: 0
B30: TO | C30: 10 | G30: 410 | J30: 0
C31: 10 | G31: 250 | J31: 0
C32: 10 | G32: 100 | J32: 0
B33: FROM | C33: 10 | G33: 100 | J33: 0
C34: 10 | G34: 250 | J34: 0
B35: TO | C35: 10 | G35: 410 | J35: 0
C36: 10 | G36: 250 | J36: 0
C37: 10 | G37: 100 | J37: 0
J39: * PARTING BEYOND PUMP CAPACITY
C40: REMARKS
B41: P/B | C41: W/S = 0.5
C42: GROUT MIX : CEMENT 50kg
C43: UCS - 0124 = 250g
C44: WATER = 25l

Sheet LUGEON METHOD
A1: THE LUGEON METHOD
A2: 1 | B2: Five consecutive water (pump-in) tests are done, each of ten minutes duration; the
B3: 1st 10 minutes is at a low pressure - (pressure "a")
B4: 2nd 10 minutes run is at a medium pressure - (pressure "b")
B5: 3rd 10 minutes run is at a peak pressure - (pressure "c")
B6: 4th 10 minutes run is at a medium pressure - (pressure "b" again)
B7: 5th 10 minutes run is at a low pressure - (pressure "a" again)
A10: 2 | B10: Lugeon Value = Water taken in test (litres/metre/min) X | H10: 10 (bars)
H11: test pressure (bars)
A13: EXPLANATION OF THE CALCULATION
A14: Lugeon (1933) in his standard test, specified a pressure of 10 bars (150p.s.i.; 1,000kPa).
A15: The "modified" test usually uses lower pressure than this because:
A16: (i) | B16: a range of pressures (rather than a single pressure) is desirable, as discussed in this paper.
A17: (ii) | B17: use of a pressure as high as 10 bars is not aways advisable, particularly at shallow depths
B18: in the weaker rocks.
A19: (iii) | B19: satisfactory results can be readily obtained with lower pressures.
A20: When using the "modified" test, it is necessary to convert the results into values which would have
A21: been (supposedly) obtained if the "definition" pressure (10 bars) has been used.
A22: Lugeon values then result from this conversion.
A23: Formula (1) carries out this conversion. However, it presumes direct proportion when relating the
A24: pressures; this presumption is only valid if flow through open jointing is laminar.
A25: Accordingly, when significantly different Lugeon values result from the calculation carried out for five test
A26: runs, it becomes immediately apparent that the flow is not laminar, or that some other factor is exerting
A27: an influence.
